Workbook

Sheet Jednotlivci
A1: Jizerská oblast | B1: Jizerská oblast | F1: Pořadatel: | I1: KVZ Liberec 07-41-02
A2: Ještědský pohár XIII.ročník | B2: Ještědský pohár XVI.ročník | F2: Ředitel: | I2: Ing. Miroslav Hanzlík
A3: Soutěž jednotlivců a družstev | B3: Soutěž jednotlivců a družstev | F3: Místo: | I3: střelnice Hodkovice n. M.
A4: Kal. soutěž č. C4- 0506 | B4: Kal. soutěž č. C4- 0516 | F4: Datum: | I4: 2016-06-04
C6: VÝSLEDKOVÁ LISTINA JEDNOTLIVCI
A8: Místo | B8: St.č. | C8: Jméno | D8: Rok nar. | E8: Družstvo | F8: VPs 1 VRs 1 | G8: VT | H8: Místo | I8: ZKM 456 | J8: Místo | K8: SVT 40 | L8: Místo | M8: SA 58 | N8: Místo | O8: TT 33 | P8: Místo | Q8: Slávia | R8: Místo | S8: Celkem | T8: Místo
A9: 1 | B9: 1 | C9: HANZLÍK Miroslav | D9: 1958 | E9: KVZ Liberec 1 | F9: ='VPs1 VRs1'!T13 -> 95 | G9: =IF(AND(F9>=98,F9<=100),"M",IF(AND(F9>=94,F9<=97),"I.",IF(AND(F9>=90,F9<=93),"II.",IF(AND(F9>=84,F9<=89),"III."," ")))) -> I. | H9: =RANK(F9,$F$9:$F$40) -> 12 | I9: =Ostatní!I13 -> 40 | J9: =RANK(I9,$I$9:$I$40) -> 16 | K9: =Ostatní!O13 -> 46 | L9: =RANK(K9,$K$9:$K$40) -> 12 | M9: =Ostatní!U13 -> 58 | N9: =RANK(M9,$M$9:$M$40) -> 1 | O9: =Ostatní!AA13 -> 28 | P9: =RANK(O9,$O$9:$O$40) -> 31 | Q9: =Ostatní!AG13 -> 40 | R9: =RANK(Q9,$Q$9:$Q$40) -> 4 | S9: =SUM(F9+I9+K9+M9+O9+Q9) -> 307 | T9: =RANK(S9,$S$9:$S$40) -> 11
A10: 2 | B10: 2 | C10: TROST Karel | D10: 1951 | E10: KVZ Liberec 1 | F10: ='VPs1 VRs1'!T14 -> 99 | G10: M | H10: 4 | I10: =Ostatní!I14 -> 37 | J10: 21 | K10: =Ostatní!O14 -> 44 | L10: 19 | M10: =Ostatní!U14 -> 48 | N10: =RANK(M10,$M$9:$M$40) -> 18 | O10: =Ostatní!AA14 -> 45 | P10: =RANK(O10,$O$9:$O$40) -> 3 | Q10: =Ostatní!AG14 -> 32 | R10: =RANK(Q10,$Q$9:$Q$40) -> 17 | S10: 305 | T10: 13
A11: 3 | B11: 3 | C11: MENDYSZEWSKI Jan | D11: 1955 | E11: KVZ Liberec 1 | F11: ='VPs1 VRs1'!T15 -> 94 | G11: I. | H11: =RANK(F11,$F$9:$F$40) -> 15 | I11: =Ostatní!I15 -> 40 | J11: 16 | K11: =Ostatní!O15 -> 49 | L11: 1 | M11: =Ostatní!U15 -> 54 | N11: =RANK(M11,$M$9:$M$40) -> 4 | O11: =Ostatní!AA15 -> 44 | P11: =RANK(O11,$O$9:$O$40) -> 4 | Q11: =Ostatní!AG15 -> 37 | R11: =RANK(Q11,$Q$9:$Q$40) -> 9 | S11: 318 | T11: 4
A12: 4 | B12: 4 | C12: VNOUČEK Miloš | D12: 1964 | E12: KVZ Liberec 1 | F12: ='VPs1 VRs1'!T16 -> 100 | G12: M | H12: 1 | I12: =Ostatní!I16 -> 39 | J12: 19 | K12: =Ostatní!O16 -> 46 | L12: 12 | M12: =Ostatní!U16 -> 52 | N12: 6 | O12: =Ostatní!AA16 -> 46 | P12: 2 | Q12: =Ostatní!AG16 -> 41 | R12: 2 | S12: 324 | T12: 1
A13: 5 | B13: 5 | C13: VAŇÁTKO Petr | D13: 1961 | E13: KVZ Liberec 2 | F13: ='VPs1 VRs1'!T17 -> 88 | G13: III. | H13: 23 | I13: =Ostatní!I17 -> 46 | J13: 2 | K13: =Ostatní!O17 -> 45 | L13: 17 | M13: =Ostatní!U17 -> 50 | N13: =RANK(M13,$M$9:$M$40) -> 13 | O13: =Ostatní!AA17 -> 35 | P13: =RANK(O13,$O$9:$O$40) -> 28 | Q13: =Ostatní!AG17 -> 26 | R13: =RANK(Q13,$Q$9:$Q$40) -> 27 | S13: 290 | T13: 18
A14: 6 | B14: 6 | C14: KUTÍK Milan | D14: 1976 | E14: KVZ Liberec 2 | F14: ='VPs1 VRs1'!T18 -> 77 | H14: 31 | I14: =Ostatní!I18 -> 42 | J14: 7 | K14: =Ostatní!O18 -> 44 | L14: 19 | M14: =Ostatní!U18 -> 46 | N14: =RANK(M14,$M$9:$M$40) -> 22 | O14: =Ostatní!AA18 -> 44 | P14: 4 | Q14: =Ostatní!AG18 -> 23 | R14: 29 | S14: 276 | T14: 25
A15: 7 | B15: 7 | C15: HANZLÍK Miroslav ml. | D15: 1990 | E15: KVZ Liberec 2 | F15: ='VPs1 VRs1'!T19 -> 86 | G15: III. | H15: 25 | I15: =Ostatní!I19 -> 45 | J15: 3 | K15: =Ostatní!O19 -> 44 | L15: 19 | M15: =Ostatní!U19 -> 52 | N15: =RANK(M15,$M$9:$M$40) -> 7 | O15: =Ostatní!AA19 -> 35 | P15: 28 | Q15: =Ostatní!AG19 -> 14 | R15: 32 | S15: 276 | T15: 25
A16: 8 | B16: 8 | C16: VNOUČEK Tomáš | D16: 1988 | E16: KVZ Liberec 2 | F16: ='VPs1 VRs1'!T20 -> 97 | G16: I. | H16: 7 | I16: =Ostatní!I20 -> 41 | J16: 13 | K16: =Ostatní!O20 -> 44 | L16: 19 | M16: =Ostatní!U20 -> 52 | N16: 6 | O16: =Ostatní!AA20 -> 42 | P16: 10 | Q16: =Ostatní!AG20 -> 38 | R16: 6 | S16: 314 | T16: 6
A17: 9 | B17: 9 | C17: LOUDA Jaroslav | D17: 1954 | E17: KVZ Turnov | F17: ='VPs1 VRs1'!T21 -> 78 | H17: 30 | I17: =Ostatní!I21 -> 9 | J17: 32 | K17: =Ostatní!O21 -> 35 | L17: 31 | M17: =Ostatní!U21 -> 28 | N17: =RANK(M17,$M$9:$M$40) -> 32 | O17: =Ostatní!AA21 -> 38 | P17: 25 | Q17: =Ostatní!AG21 -> 36 | R17: 11 | S17: 224 | T17: 32
B18: 10 | C18: HUŠEK Ladislav | D18: 1954 | E18: KVZ Turnov | F18: ='VPs1 VRs1'!T22 -> 91 | G18: II. | H18: 19 | I18: =Ostatní!I22 -> 31 | J18: 26 | K18: =Ostatní!O22 -> 48 | L18: 3 | M18: =Ostatní!U22 -> 52 | N18: 6 | O18: =Ostatní!AA22 -> 29 | P18: 30 | Q18: =Ostatní!AG22 -> 34 | R18: 15 | S18: 285 | T18: 24
A19: 10 | B19: 11 | C19: HUDSKÝ Vítězslav | D19: 1949 | E19: KVZ Turnov | F19: ='VPs1 VRs1'!T23 -> 89 | G19: III. | H19: 21 | I19: =Ostatní!I23 -> 35 | J19: 22 | K19: =Ostatní!O23 -> 44 | L19: 19 | M19: =Ostatní!U23 -> 50 | N19: =RANK(M19,$M$9:$M$40) -> 13 | O19: =Ostatní!AA23 -> 39 | P19: 23 | Q19: =Ostatní!AG23 -> 30 | R19: 19 | S19: 287 | T19: 21
A20: 11 | B20: 12 | C20: ŠÍDA Bohuslav | D20: 1960 | E20: KVZ Turnov | F20: ='VPs1 VRs1'!T24 -> 95 | G20: I. | H20: 12 | I20: =Ostatní!I24 -> 29 | J20: 27 | K20: =Ostatní!O24 -> 41 | L20: 28 | M20: =Ostatní!U24 -> 48 | N20: 18 | O20: =Ostatní!AA24 -> 46 | P20: 1 | Q20: =Ostatní!AG24 -> 41 | R20: 3 | S20: 300 | T20: 14
A21: 12 | B21: 13 | C21: STRÁNSKÝ Jaromír | D21: 1953 | E21: KVZ Jenišovice | F21: ='VPs1 VRs1'!T25 -> 97 | G21: I. | H21: 7 | I21: =Ostatní!I25 -> 40 | J21: 16 | K21: =Ostatní!O25 -> 47 | L21: 8 | M21: =Ostatní!U25 -> 46 | N21: 22 | O21: =Ostatní!AA25 -> 41 | P21: 18 | Q21: =Ostatní!AG25 -> 38 | R21: =RANK(Q21,$Q$9:$Q$40) -> 6 | S21: 309 | T21: 10
A22: 13 | B22: 14 | C22: MIKULE Roman | D22: 1970 | E22: KVZ Jenišovice | F22: ='VPs1 VRs1'!T26 -> 98 | G22: M | H22: 6 | I22: =Ostatní!I26 -> 42 | J22: 7 | K22: =Ostatní!O26 -> 44 | L22: 19 | M22: =Ostatní!U26 -> 46 | N22: 22 | O22: =Ostatní!AA26 -> 43 | P22: 9 | Q22: =Ostatní!AG26 -> 38 | R22: 6 | S22: 311 | T22: 9
A23: 14 | B23: 15 | C23: POKORNÝ Daniel | D23: 1968 | E23: KVZ Jenišovice | F23: ='VPs1 VRs1'!T27 -> 89 | G23: III. | H23: =RANK(F23,$F$9:$F$40) -> 21 | I23: =Ostatní!I27 -> 41 | J23: 13 | K23: =Ostatní!O27 -> 44 | L23: 19 | M23: =Ostatní!U27 -> 50 | N23: 13 | O23: =Ostatní!AA27 -> 40 | P23: 21 | Q23: =Ostatní!AG27 -> 35 | R23: 13 | S23: 299 | T23: =RANK(S23,$S$9:$S$40) -> 16
A24: 15 | B24: 16 | C24: PLŮCHA Pavel | D24: 1964 | E24: KVZ Tanvald | F24: ='VPs1 VRs1'!T28 -> 98 | G24: M | H24: 5 | I24: =Ostatní!I28 -> 44 | J24: 4 | K24: =Ostatní!O28 -> 48 | L24: 3 | M24: =Ostatní!U28 -> 48 | N24: 18 | O24: =Ostatní!AA28 -> 42 | P24: 10 | Q24: =Ostatní!AG28 -> 41 | R24: 1 | S24: 321 | T24: 2
A25: 16 | B25: 17 | C25: KUČERA Karel | D25: 1950 | E25: KVZ Hodkovice | F25: ='VPs1 VRs1'!T29 -> 91 | G25: II. | H25: 19 | I25: =Ostatní!I29 -> 29 | J25: =RANK(I25,$I$9:$I$40) -> 27 | K25: =Ostatní!O29 -> 48 | L25: 3 | M25: =Ostatní!U29 -> 50 | N25: 13 | O25: =Ostatní!AA29 -> 42 | P25: 10 | Q25: =Ostatní!AG29 -> 30 | R25: 19 | S25: 290 | T25: 18
A26: 17 | B26: 18 | C26: PEKLÁK Dalibor | D26: 1961 | E26: KVZ Hodkovice | F26: ='VPs1 VRs1'!T30 -> 97 | G26: I. | H26: 7 | I26: =Ostatní!I30 -> 34 | J26: 24 | K26: =Ostatní!O30 -> 48 | L26: 3 | M26: =Ostatní!U30 -> 56 | N26: 2 | O26: =Ostatní!AA30 -> 42 | P26: 10 | Q26: =Ostatní!AG30 -> 35 | R26: 13 | S26: 312 | T26: 8
A27: 18 | B27: 19 | C27: BRZÁK Jan | D27: 1972 | E27: KVZ Hodkovice | F27: ='VPs1 VRs1'!T31 -> 97 | G27: I. | H27: 7 | I27: =Ostatní!I31 -> 41 | J27: 13 | K27: =Ostatní!O31 -> 47 | L27: =RANK(K27,$K$9:$K$40) -> 8 | M27: =Ostatní!U31 -> 52 | N27: 7 | O27: =Ostatní!AA31 -> 42 | P27: 10 | Q27: =Ostatní!AG31 -> 36 | R27: 11 | S27: 315 | T27: 5
A28: 19 | B28: 20 | C28: CILICHOVÁ Jaroslava | D28: 1973 | E28: KVZ Hodkovice | F28: ='VPs1 VRs1'!T32 -> 93 | G28: II. | H28: 16 | I28: =Ostatní!I32 -> 44 | J28: 4 | K28: =Ostatní!O32 -> 48 | L28: 3 | M28: =Ostatní!U32 -> 52 | N28: 7 | O28: =Ostatní!AA32 -> 44 | P28: 4 | Q28: =Ostatní!AG32 -> 32 | R28: 17 | S28: 313 | T28: 7
A29: 20 | B29: 21 | C29: PROCHÁZKA Jaroslav | D29: 1961 | E29: KVZ Liberec 3 | F29: ='VPs1 VRs1'!T33 -> 81 | H29: 29 | I29: =Ostatní!I33 -> 42 | J29: 7 | K29: =Ostatní!O33 -> 47 | L29: =RANK(K29,$K$9:$K$40) -> 8 | M29: =Ostatní!U33 -> 54 | N29: 4 | O29: =Ostatní!AA33 -> 44 | P29: 4 | Q29: =Ostatní!AG33 -> 39 | R29: 5 | S29: 307 | T29: 12
A30: 21 | B30: 22 | C30: HLAVATÝ Josef | D30: 1958 | E30: KVZ Liberec 3 | F30: ='VPs1 VRs1'!T34 -> 72 | H30: 32 | I30: =Ostatní!I34 -> 44 | J30: 4 | K30: =Ostatní!O34 -> 41 | L30: 28 | M30: =Ostatní!U34 -> 56 | N30: 2 | O30: =Ostatní!AA34 -> 44 | P30: 4 | Q30: =Ostatní!AG34 -> 29 | R30: 25 | S30: 286 | T30: =RANK(S30,$S$9:$S$40) -> 22
A31: 22 | B31: 23 | C31: BENÁČEK Martin | D31: 1965 | E31: KVZ Liberec 3 | F31: ='VPs1 VRs1'!T35 -> 100 | G31: M | H31: 2 | I31: =Ostatní!I35 -> 42 | J31: 7 | K31: =Ostatní!O35 -> 47 | L31: 8 | M31: =Ostatní!U35 -> 46 | N31: 22 | O31: =Ostatní!AA35 -> 42 | P31: 10 | Q31: =Ostatní!AG35 -> 23 | R31: 29 | S31: 300 | T31: 15
A32: 23 | B32: 24 | C32: RESL Jan | D32: 1961 | E32: KVZ Hodkovice | F32: ='VPs1 VRs1'!T36 -> 95 | G32: I. | H32: =RANK(F32,$F$9:$F$40) -> 12 | I32: =Ostatní!I36 -> 42 | J32: 7 | K32: =Ostatní!O36 -> 45 | L32: 17 | M32: =Ostatní!U36 -> 44 | N32: 27 | O32: =Ostatní!AA36 -> 40 | P32: 21 | Q32: =Ostatní!AG36 -> 30 | R32: 19 | S32: 296 | T32: =RANK(S32,$S$9:$S$40) -> 17
A33: 24 | B33: 25 | C33: HALAMA Jan | D33: 1977 | E33: KVZ Varnsdorf | F33: ='VPs1 VRs1'!T37 -> 88 | G33: III. | H33: 23 | I33: =Ostatní!I37 -> 42 | J33: 7 | K33: =Ostatní!O37 -> 40 | L33: 30 | M33: =Ostatní!U37 -> 46 | N33: 22 | O33: =Ostatní!AA37 -> 42 | P33: 10 | Q33: =Ostatní!AG37 -> 28 | R33: 26 | S33: 286 | T33: 22
A34: 25 | B34: 26 | C34: NOVOTNÝ Tomáš | D34: 1992 | E34: KVZ Varnsdorf | F34: ='VPs1 VRs1'!T38 -> 93 | G34: II. | H34: 16 | I34: =Ostatní!I38 -> 39 | J34: 19 | K34: =Ostatní!O38 -> 46 | L34: 12 | M34: =Ostatní!U38 -> 42 | N34: 29 | O34: =Ostatní!AA38 -> 17 | P34: 32 | Q34: =Ostatní!AG38 -> 26 | R34: 27 | S34: 263 | T34: 29
A35: 26 | B35: 27 | C35: ČERVINKA Leoš | D35: 1970 | E35: KVZ Jenišovice | F35: ='VPs1 VRs1'!T39 -> 97 | G35: I. | H35: 7 | I35: =Ostatní!I39 -> 29 | J35: 27 | K35: =Ostatní!O39 -> 26 | L35: 32 | M35: =Ostatní!U39 -> 44 | N35: 27 | O35: =Ostatní!AA39 -> 36 | P35: 27 | Q35: =Ostatní!AG39 -> 37 | R35: 9 | S35: 269 | T35: 28
B36: 28 | C36: VELC Jindřich | D36: 1948 | E36: KVZ Liberec | F36: ='VPs1 VRs1'!T40 -> 92 | G36: II. | H36: 18 | I36: =Ostatní!I40 -> 21 | J36: 30 | K36: =Ostatní!O40 -> 46 | L36: 12 | M36: =Ostatní!U40 -> 40 | N36: 31 | O36: =Ostatní!AA40 -> 37 | P36: 26 | Q36: =Ostatní!AG40 -> 19 | R36: 31 | S36: 255 | T36: 31
B37: 29 | C37: KRÁTKÝ Karel | D37: 1955 | E37: KVZ Liberec 4 | F37: ='VPs1 VRs1'!T41 -> 99 | G37: M | H37: 3 | I37: =Ostatní!I41 -> 47 | J37: 1 | K37: =Ostatní!O41 -> 49 | L37: 1 | M37: =Ostatní!U41 -> 54 | N37: 4 | O37: =Ostatní!AA41 -> 41 | P37: 18 | Q37: =Ostatní!AG41 -> 30 | R37: 19 | S37: 320 | T37: 3
B38: 30 | C38: KLACEK Miloš | D38: 1939 | E38: KVZ Liberec 4 | F38: ='VPs1 VRs1'!T42 -> 85 | G38: III. | H38: 26 | I38: =Ostatní!I42 -> 13 | J38: 31 | K38: =Ostatní!O42 -> 42 | L38: 26 | M38: =Ostatní!U42 -> 48 | N38: 18 | O38: =Ostatní!AA42 -> 39 | P38: 23 | Q38: =Ostatní!AG42 -> 30 | R38: 19 | S38: 257 | T38: 30
B39: 31 | C39: POLENO Dušan | D39: 1951 | E39: KVZ Liberec 4 | F39: ='VPs1 VRs1'!T43 -> 84 | G39: III. | H39: 27 | I39: =Ostatní!I43 -> 35 | J39: 22 | K39: =Ostatní!O43 -> 46 | L39: 12 | M39: =Ostatní!U43 -> 50 | N39: 13 | O39: =Ostatní!AA43 -> 42 | P39: 10 | Q39: =Ostatní!AG43 -> 33 | R39: 16 | S39: 290 | T39: 18
B40: 32 | C40: MUSIL Martin | D40: 1977 | E40: KVZ Liberec 4 | F40: ='VPs1 VRs1'!T44 -> 82 | H40: 28 | I40: =Ostatní!I44 -> 34 | J40: 24 | K40: =Ostatní!O44 -> 42 | L40: 26 | M40: =Ostatní!U44 -> 42 | N40: 29 | O40: =Ostatní!AA44 -> 41 | P40: 18 | Q40: =Ostatní!AG44 -> 30 | R40: 19 | S40: 271 | T40: 27
B41: Závod byl ukončen v 15.10 hod.
B42: Hlavní rozhodčí: | D42: Miloš Klacek 1-046 | K42: Tajemník: Petr Vaňátko 3-486
B43: Řídící střelby: | D43: Ing. Miroslav Hanzlík 1-001, Ing. Karel Krátký 2-165 | K43: Zdravotník: Tomáš Vnouček
B44: Úsekoví rozhodčí: | D44: Jan Mendyszewski 3-490, Ing. Jaroslav Procházka 2-301 | K44: Správce střelnice: Jan Brzák
D45: Jindřich Velc 2-153, Milan Kutík 3-126, Dušan Poleno 2-144
B46: Inspektor zbraní: | D46: Jan Mendyszewski 3-490
B47: Předseda hodnotící komise: | D47: Miloš Vnouček 1-111
B48: Člen hodnotící komise: | D48: Petr Vaňátko 3-486

Sheet Družstva
A1: Jizerská oblast | E1: Pořadatel: | H1: KVZ Liberec 07-41-02
A2: Ještědský pohár XIV.ročník | E2: Ředitel: | H2: Ing. Miroslav Hanzlík
A3: Soutěž jednotlivců a družstev | E3: Místo: | H3: střelnice Hodkovice n. M.
A4: Kal. soutěž č. C4- 0516 | E4: Datum: | H4: 2014-06-07
B6: VÝSLEDKOVÁ LISTINA DRUŽSTVA
A8: St.číslo | B8: Družstvo | C8: VPs 1 VRs 1 | D8: Místo | E8: ZKM 456 | F8: Místo | G8: SVT 40 | H8: Místo | I8: SA 58 | J8: Místo | K8: TT 33 | L8: Místo | M8: Slávia | N8: Místo | O8: Celkem | P8: Místo
A9: 1 | B9: =Jednotlivci!E9 -> KVZ Liberec 1 | C9: =Jednotlivci!F9+Jednotlivci!F10+Jednotlivci!F11+Jednotlivci!F12 -> 388 | D9: =RANK(C9,$C$9:$C$16) -> 1 | E9: =Jednotlivci!I9+Jednotlivci!I10+Jednotlivci!I11+Jednotlivci!I12 -> 156 | F9: =RANK(E9,$E$9:$E$16) -> 4 | G9: =Jednotlivci!K9+Jednotlivci!K10+Jednotlivci!K11+Jednotlivci!K12 -> 185 | H9: =RANK(G9,$G$9:$G$16) -> 2 | I9: =Jednotlivci!M9+Jednotlivci!M10+Jednotlivci!M11+Jednotlivci!M12 -> 212 | J9: =RANK(I9,$I$9:$I$16) -> 1 | K9: =Jednotlivci!O9+Jednotlivci!O10+Jednotlivci!O11+Jednotlivci!O12 -> 163 | L9: =RANK(K9,$K$9:$K$16) -> 4 | M9: =Jednotlivci!Q9+Jednotlivci!Q10+Jednotlivci!Q11+Jednotlivci!Q12 -> 150 | N9: =RANK(M9,$M$9:$M$16) -> 2 | O9: =SUM(C9+E9+G9+I9+K9+M9) -> 1254 | P9: =RANK(O9,$O$9:$O$16) -> 1
A10: 2 | B10: =Jednotlivci!E13 -> KVZ Liberec 2 | C10: =Jednotlivci!F13+Jednotlivci!F14+Jednotlivci!F15+Jednotlivci!F16 -> 348 | D10: =RANK(C10,$C$9:$C$16) -> 7 | E10: =Jednotlivci!I13+Jednotlivci!I14+Jednotlivci!I15+Jednotlivci!I16 -> 174 | F10: =RANK(E10,$E$9:$E$16) -> 1 | G10: =Jednotlivci!K13+Jednotlivci!K14+Jednotlivci!K15+Jednotlivci!K16 -> 177 | H10: =RANK(G10,$G$9:$G$16) -> 6 | I10: =Jednotlivci!M13+Jednotlivci!M14+Jednotlivci!M15+Jednotlivci!M16 -> 200 | J10: 3 | K10: =Jednotlivci!O13+Jednotlivci!O14+Jednotlivci!O15+Jednotlivci!O16 -> 156 | L10: =RANK(K10,$K$9:$K$16) -> 6 | M10: =Jednotlivci!Q13+Jednotlivci!Q14+Jednotlivci!Q15+Jednotlivci!Q16 -> 101 | N10: =RANK(M10,$M$9:$M$16) -> 8 | O10: 1156 | P10: =RANK(O10,$O$9:$O$16) -> 5
A11: 3 | B11: =Jednotlivci!E19 -> KVZ Turnov | C11: =Jednotlivci!F17+Jednotlivci!F18+Jednotlivci!F19+Jednotlivci!F20 -> 353 | D11: 5 | E11: =Jednotlivci!I17+Jednotlivci!I18+Jednotlivci!I19+Jednotlivci!I20 -> 104 | F11: 8 | G11: =Jednotlivci!K17+Jednotlivci!K18+Jednotlivci!K19+Jednotlivci!K20 -> 168 | H11: 7 | I11: =Jednotlivci!M17+Jednotlivci!M18+Jednotlivci!M19+Jednotlivci!M20 -> 178 | J11: 7 | K11: =Jednotlivci!O17+Jednotlivci!O18+Jednotlivci!O19+Jednotlivci!O20 -> 152 | L11: 7 | M11: =Jednotlivci!Q17+Jednotlivci!Q18+Jednotlivci!Q19+Jednotlivci!Q20 -> 141 | N11: 3 | O11: 1096 | P11: 7
A12: 4 | B12: =Jednotlivci!E21 -> KVZ Jenišovice | C12: =Jednotlivci!F22+Jednotlivci!F23+Jednotlivci!F24+Jednotlivci!F21 -> 382 | D12: 2 | E12: =Jednotlivci!I22+Jednotlivci!I23+Jednotlivci!I24+Jednotlivci!I21 -> 167 | F12: 3 | G12: =Jednotlivci!K22+Jednotlivci!K23+Jednotlivci!K24+Jednotlivci!K21 -> 183 | H12: 3 | I12: =Jednotlivci!M22+Jednotlivci!M23+Jednotlivci!M24+Jednotlivci!M21 -> 190 | J12: 6 | K12: =Jednotlivci!O22+Jednotlivci!O23+Jednotlivci!O24+Jednotlivci!O21 -> 166 | L12: 3 | M12: =Jednotlivci!Q22+Jednotlivci!Q23+Jednotlivci!Q24+Jednotlivci!Q21 -> 152 | N12: 1 | O12: 1240 | P12: 2
A13: 5 | B13: =Jednotlivci!E25 -> KVZ Hodkovice | C13: =Jednotlivci!F26+Jednotlivci!F27+Jednotlivci!F28+Jednotlivci!F25 -> 378 | D13: 3 | E13: =Jednotlivci!I26+Jednotlivci!I27+Jednotlivci!I28+Jednotlivci!I25 -> 148 | F13: 5 | G13: =Jednotlivci!K26+Jednotlivci!K27+Jednotlivci!K28+Jednotlivci!K25 -> 191 | H13: 1 | I13: =Jednotlivci!M26+Jednotlivci!M27+Jednotlivci!M28+Jednotlivci!M25 -> 210 | J13: 2 | K13: =Jednotlivci!O26+Jednotlivci!O27+Jednotlivci!O28+Jednotlivci!O25 -> 170 | L13: 1 | M13: =Jednotlivci!Q26+Jednotlivci!Q27+Jednotlivci!Q28+Jednotlivci!Q25 -> 133 | N13: 4 | O13: 1230 | P13: 3
A14: 6 | B14: =Jednotlivci!E29 -> KVZ Liberec 3 | C14: =Jednotlivci!F30+Jednotlivci!F31+Jednotlivci!F32+Jednotlivci!F29 -> 348 | D14: 7 | E14: =Jednotlivci!I30+Jednotlivci!I31+Jednotlivci!I32+Jednotlivci!I29 -> 170 | F14: 2 | G14: =Jednotlivci!K30+Jednotlivci!K31+Jednotlivci!K32+Jednotlivci!K29 -> 180 | H14: 4 | I14: =Jednotlivci!M30+Jednotlivci!M31+Jednotlivci!M32+Jednotlivci!M29 -> 200 | J14: 3 | K14: =Jednotlivci!O30+Jednotlivci!O31+Jednotlivci!O32+Jednotlivci!O29 -> 170 | L14: 2 | M14: =Jednotlivci!Q30+Jednotlivci!Q31+Jednotlivci!Q32+Jednotlivci!Q29 -> 121 | N14: 6 | O14: 1189 | P14: 4
A15: 7 | B15: =Jednotlivci!E33 -> KVZ Varnsdorf | C15: =Jednotlivci!F34+Jednotlivci!F35+Jednotlivci!F36+Jednotlivci!F33 -> 370 | D15: 4 | E15: =Jednotlivci!I34+Jednotlivci!I35+Jednotlivci!I36+Jednotlivci!I33 -> 131 | F15: 6 | G15: =Jednotlivci!K34+Jednotlivci!K35+Jednotlivci!K36+Jednotlivci!K33 -> 158 | H15: 8 | I15: =Jednotlivci!M34+Jednotlivci!M35+Jednotlivci!M36+Jednotlivci!M33 -> 172 | J15: 8 | K15: =Jednotlivci!O34+Jednotlivci!O35+Jednotlivci!O36+Jednotlivci!O33 -> 132 | L15: 8 | M15: =Jednotlivci!Q34+Jednotlivci!Q35+Jednotlivci!Q36+Jednotlivci!Q33 -> 110 | N15: 7 | O15: 1073 | P15: 8
A16: 8 | B16: =Jednotlivci!E37 -> KVZ Liberec 4 | C16: =Jednotlivci!F38+Jednotlivci!F39+Jednotlivci!F40+Jednotlivci!F37 -> 350 | D16: 6 | E16: =Jednotlivci!I38+Jednotlivci!I39+Jednotlivci!I40+Jednotlivci!I37 -> 129 | F16: 7 | G16: =Jednotlivci!K38+Jednotlivci!K39+Jednotlivci!K40+Jednotlivci!K37 -> 179 | H16: 5 | I16: =Jednotlivci!M38+Jednotlivci!M39+Jednotlivci!M40+Jednotlivci!M37 -> 194 | J16: =RANK(I16,$I$9:$I$16) -> 5 | K16: =Jednotlivci!O38+Jednotlivci!O39+Jednotlivci!O40+Jednotlivci!O37 -> 163 | L16: 4 | M16: =Jednotlivci!Q38+Jednotlivci!Q39+Jednotlivci!Q40+Jednotlivci!Q37 -> 123 | N16: 5 | O16: 1138 | P16: 6
A17: Závod byl ukončen v 15.10 hod.
A18: Hlavní rozhodčí: | C18: Miloš Klacek 1-046 | J18: Tajemník: Petr Vaňátko 3-486
A19: Řídící střelby: | C19: Ing. Miroslav Hanzlík 1-001, Ing. Karel Krátký 2-165 | J19: Zdravotník: Tomáš Vnouček
A20: Úsekoví rozhodčí: | C20: Jan Mendyszewski 3-490, Ing. Jaroslav Procházka 2-301 | J20: Správce střelnice: Jan Brzák
C21: Jindřich Velc 2-153, Milan Kutík 3-126, Dušan Poleno 2-144
A22: Inspektor zbraní: | C22: Jan Mendyszewski 3-490
A23: Předseda hodnotící komise: | C23: Miloš Vnouček 1-111
A24: Člen hodnotící komise: | C24: Petr Vaňátko 3-486

Sheet VPs1 VRs1
B9: VPs 1 / VRs 1
A12: Start.č. | B12: Jméno | C12: rok nar. | D12: Družstvo | E12: Zásahy | T12: Celkem
A13: =Jednotlivci!B9 -> 1 | B13: =Jednotlivci!C9 -> HANZLÍK Miroslav | C13: =Jednotlivci!D9 -> 1958 | D13: =Jednotlivci!E9 -> KVZ Liberec 1 | E13: 10 | F13: 10 | G13: 10 | H13: 10 | I13: 10 | J13: 10 | K13: 9 | L13: 9 | M13: 9 | N13: 8 | T13: =SUM(E13:S13) -> 95
A14: =Jednotlivci!B10 -> 2 | B14: =Jednotlivci!C10 -> TROST Karel | C14: =Jednotlivci!D10 -> 1951 | D14: =Jednotlivci!E10 -> KVZ Liberec 1 | E14: 10 | F14: 10 | G14: 10 | H14: 10 | I14: 10 | J14: 10 | K14: 10 | L14: 10 | M14: 10 | N14: 9 | T14: 99
A15: =Jednotlivci!B11 -> 3 | B15: =Jednotlivci!C11 -> MENDYSZEWSKI Jan | C15: =Jednotlivci!D11 -> 1955 | D15: =Jednotlivci!E11 -> KVZ Liberec 1 | E15: 10 | F15: 10 | G15: 10 | H15: 10 | I15: 9 | J15: 9 | K15: 9 | L15: 9 | M15: 9 | N15: 9 | T15: 94
A16: =Jednotlivci!B12 -> 4 | B16: =Jednotlivci!C12 -> VNOUČEK Miloš | C16: =Jednotlivci!D12 -> 1964 | D16: =Jednotlivci!E12 -> KVZ Liberec 1 | E16: 10 | F16: 10 | G16: 10 | H16: 10 | I16: 10 | J16: 10 | K16: 10 | L16: 10 | M16: 10 | N16: 10 | T16: 100
A17: =Jednotlivci!B13 -> 5 | B17: =Jednotlivci!C13 -> VAŇÁTKO Petr | C17: =Jednotlivci!D13 -> 1961 | D17: =Jednotlivci!E13 -> KVZ Liberec 2 | E17: 9 | F17: 9 | G17: 9 | H17: 9 | I17: 9 | J17: 9 | K17: 9 | L17: 9 | M17: 9 | N17: 7 | T17: 88
A18: =Jednotlivci!B14 -> 6 | B18: =Jednotlivci!C14 -> KUTÍK Milan | C18: =Jednotlivci!D14 -> 1976 | D18: =Jednotlivci!E14 -> KVZ Liberec 2 | E18: 10 | F18: 9 | G18: 9 | H18: 8 | I18: 8 | J18: 8 | K18: 7 | L18: 6 | M18: 6 | N18: 6 | T18: 77
A19: =Jednotlivci!B15 -> 7 | B19: =Jednotlivci!C15 -> HANZLÍK Miroslav ml. | C19: =Jednotlivci!D15 -> 1990 | D19: =Jednotlivci!E15 -> KVZ Liberec 2 | E19: 10 | F19: 10 | G19: 10 | H19: 9 | I19: 9 | J19: 9 | K19: 8 | L19: 8 | M19: 7 | N19: 6 | T19: 86
A20: =Jednotlivci!B16 -> 8 | B20: =Jednotlivci!C16 -> VNOUČEK Tomáš | C20: =Jednotlivci!D13 -> 1961 | D20: =Jednotlivci!E16 -> KVZ Liberec 2 | E20: 10 | F20: 10 | G20: 10 | H20: 10 | I20: 10 | J20: 10 | K20: 10 | L20: 9 | M20: 9 | N20: 9 | T20: 97
A21: =Jednotlivci!B17 -> 9 | B21: =Jednotlivci!C17 -> LOUDA Jaroslav | C21: =Jednotlivci!D14 -> 1976 | D21: =Jednotlivci!E17 -> KVZ Turnov | E21: 10 | F21: 9 | G21: 9 | H21: 9 | I21: 9 | J21: 9 | K21: 8 | L21: 8 | M21: 7 | N21: 0 | T21: 78
A22: 10 | B22: =Jednotlivci!C18 -> HUŠEK Ladislav | C22: =Jednotlivci!D15 -> 1990 | D22: =Jednotlivci!E18 -> KVZ Turnov | E22: 10 | F22: 10 | G22: 9 | H22: 9 | I22: 9 | J22: 9 | K22: 9 | L22: 9 | M22: 9 | N22: 8 | T22: =SUM(E22:S22) -> 91
A23: =Jednotlivci!B19 -> 11 | B23: =Jednotlivci!C19 -> HUDSKÝ Vítězslav | C23: =Jednotlivci!D16 -> 1988 | D23: =Jednotlivci!E19 -> KVZ Turnov | E23: 10 | F23: 10 | G23: 10 | H23: 9 | I23: 9 | J23: 9 | K23: 9 | L23: 9 | M23: 7 | N23: 7 | T23: 89
A24: =Jednotlivci!B20 -> 12 | B24: =Jednotlivci!C20 -> ŠÍDA Bohuslav | C24: =Jednotlivci!D17 -> 1954 | D24: =Jednotlivci!E20 -> KVZ Turnov | E24: 10 | F24: 10 | G24: 10 | H24: 10 | I24: 10 | J24: 9 | K24: 9 | L24: 9 | M24: 9 | N24: 9 | T24: 95
A25: =Jednotlivci!B21 -> 13 | B25: =Jednotlivci!C21 -> STRÁNSKÝ Jaromír | C25: =Jednotlivci!D18 -> 1954 | D25: =Jednotlivci!E21 -> KVZ Jenišovice | E25: 10 | F25: 10 | G25: 10 | H25: 10 | I25: 10 | J25: 10 | K25: 10 | L25: 9 | M25: 9 | N25: 9 | T25: 97
A26: =Jednotlivci!B22 -> 14 | B26: =Jednotlivci!C22 -> MIKULE Roman | C26: =Jednotlivci!D19 -> 1949 | D26: =Jednotlivci!E22 -> KVZ Jenišovice | E26: 10 | F26: 10 | G26: 10 | H26: 10 | I26: 10 | J26: 10 | K26: 10 | L26: 10 | M26: 9 | N26: 9 | T26: 98
A27: =Jednotlivci!B23 -> 15 | B27: =Jednotlivci!C23 -> POKORNÝ Daniel | C27: =Jednotlivci!D20 -> 1960 | D27: =Jednotlivci!E23 -> KVZ Jenišovice | E27: 10 | F27: 10 | G27: 10 | H27: 9 | I27: 9 | J27: 9 | K27: 9 | L27: 8 | M27: 8 | N27: 7 | T27: 89
A28: =Jednotlivci!B24 -> 16 | B28: =Jednotlivci!C24 -> PLŮCHA Pavel | C28: =Jednotlivci!D21 -> 1953 | D28: =Jednotlivci!E24 -> KVZ Tanvald | E28: 10 | F28: 10 | G28: 10 | H28: 10 | I28: 10 | J28: 10 | K28: 10 | L28: 10 | M28: 9 | N28: 9 | T28: 98
A29: =Jednotlivci!B25 -> 17 | B29: =Jednotlivci!C25 -> KUČERA Karel | C29: =Jednotlivci!D22 -> 1970 | D29: =Jednotlivci!E25 -> KVZ Hodkovice | E29: 10 | F29: 10 | G29: 9 | H29: 9 | I29: 9 | J29: 9 | K29: 9 | L29: 9 | M29: 9 | N29: 8 | T29: 91
A30: =Jednotlivci!B26 -> 18 | B30: =Jednotlivci!C26 -> PEKLÁK Dalibor | C30: =Jednotlivci!D23 -> 1968 | D30: =Jednotlivci!E26 -> KVZ Hodkovice | E30: 10 | F30: 10 | G30: 10 | H30: 10 | I30: 10 | J30: 10 | K30: 10 | L30: 9 | M30: 9 | N30: 9 | T30: 97
A31: =Jednotlivci!B27 -> 19 | B31: BRZÁK Jan | C31: =Jednotlivci!D24 -> 1964 | D31: =Jednotlivci!E27 -> KVZ Hodkovice | E31: 10 | F31: 10 | G31: 10 | H31: 10 | I31: 10 | J31: 10 | K31: 10 | L31: 9 | M31: 9 | N31: 9 | T31: 97
A32: =Jednotlivci!B28 -> 20 | B32: =Jednotlivci!C28 -> CILICHOVÁ Jaroslava | C32: =Jednotlivci!D25 -> 1950 | D32: =Jednotlivci!E28 -> KVZ Hodkovice | E32: 10 | F32: 10 | G32: 10 | H32: 9 | I32: 9 | J32: 9 | K32: 9 | L32: 9 | M32: 9 | N32: 9 | T32: 93
A33: =Jednotlivci!B29 -> 21 | B33: =Jednotlivci!C29 -> PROCHÁZKA Jaroslav | C33: =Jednotlivci!D26 -> 1961 | D33: =Jednotlivci!E29 -> KVZ Liberec 3 | E33: 10 | F33: 10 | G33: 9 | H33: 9 | I33: 9 | J33: 9 | K33: 9 | L33: 8 | M33: 8 | N33: 0 | T33: 81
A34: =Jednotlivci!B30 -> 22 | B34: =Jednotlivci!C30 -> HLAVATÝ Josef | C34: =Jednotlivci!D27 -> 1972 | D34: =Jednotlivci!E30 -> KVZ Liberec 3 | E34: 10 | F34: 10 | G34: 10 | H34: 10 | I34: 9 | J34: 9 | K34: 9 | L34: 9 | M34: 0 | N34: -4 | T34: 72
A35: =Jednotlivci!B31 -> 23 | B35: =Jednotlivci!C31 -> BENÁČEK Martin | C35: =Jednotlivci!D28 -> 1973 | D35: =Jednotlivci!E31 -> KVZ Liberec 3 | E35: 10 | F35: 10 | G35: 10 | H35: 10 | I35: 10 | J35: 10 | K35: 10 | L35: 10 | M35: 10 | N35: 10 | T35: 100
A36: =Jednotlivci!B32 -> 24 | B36: =Jednotlivci!C32 -> RESL Jan | C36: =Jednotlivci!D29 -> 1961 | D36: =Jednotlivci!E32 -> KVZ Hodkovice | E36: 10 | F36: 10 | G36: 10 | H36: 10 | I36: 10 | J36: 9 | K36: 9 | L36: 9 | M36: 9 | N36: 9 | T36: 95
A37: =Jednotlivci!B33 -> 25 | B37: =Jednotlivci!C33 -> HALAMA Jan | C37: =Jednotlivci!D30 -> 1958 | D37: =Jednotlivci!E33 -> KVZ Varnsdorf | E37: 10 | F37: 10 | G37: 10 | H37: 9 | I37: 9 | J37: 9 | K37: 9 | L37: 8 | M37: 8 | N37: 6 | T37: 88
A38: =Jednotlivci!B34 -> 26 | B38: =Jednotlivci!C34 -> NOVOTNÝ Tomáš | C38: =Jednotlivci!D31 -> 1965 | D38: =Jednotlivci!E34 -> KVZ Varnsdorf | E38: 10 | F38: 10 | G38: 10 | H38: 10 | I38: 10 | J38: 9 | K38: 9 | L38: 9 | M38: 8 | N38: 8 | T38: 93
A39: =Jednotlivci!B35 -> 27 | B39: =Jednotlivci!C35 -> ČERVINKA Leoš | C39: =Jednotlivci!D32 -> 1961 | D39: =Jednotlivci!E35 -> KVZ Jenišovice | E39: 10 | F39: 10 | G39: 10 | H39: 10 | I39: 10 | J39: 10 | K39: 10 | L39: 9 | M39: 9 | N39: 9 | T39: 97
A40: =Jednotlivci!B36 -> 28 | B40: =Jednotlivci!C36 -> VELC Jindřich | C40: =Jednotlivci!D33 -> 1977 | D40: =Jednotlivci!E36 -> KVZ Liberec | E40: 10 | F40: 10 | G40: 10 | H40: 10 | I40: 10 | J40: 9 | K40: 9 | L40: 9 | M40: 8 | N40: 7 | T40: =SUM(E40:S40) -> 92
A41: =Jednotlivci!B37 -> 29 | B41: =Jednotlivci!C37 -> KRÁTKÝ Karel | C41: =Jednotlivci!D34 -> 1992 | D41: =Jednotlivci!E37 -> KVZ Liberec 4 | E41: 10 | F41: 10 | G41: 10 | H41: 10 | I41: 10 | J41: 10 | K41: 10 | L41: 10 | M41: 10 | N41: 9 | T41: 99
A42: =Jednotlivci!B38 -> 30 | B42: =Jednotlivci!C38 -> KLACEK Miloš | C42: =Jednotlivci!D35 -> 1970 | D42: =Jednotlivci!E38 -> KVZ Liberec 4 | E42: 9 | F42: 9 | G42: 9 | H42: 9 | I42: 9 | J42: 9 | K42: 8 | L42: 8 | M42: 8 | N42: 7 | T42: 85
A43: =Jednotlivci!B39 -> 31 | B43: =Jednotlivci!C39 -> POLENO Dušan | C43: =Jednotlivci!D36 -> 1948 | D43: =Jednotlivci!E39 -> KVZ Liberec 4 | E43: 10 | F43: 10 | G43: 10 | H43: 10 | I43: 9 | J43: 9 | K43: 9 | L43: 9 | M43: 8 | N43: 0 | T43: 84
A44: =Jednotlivci!B40 -> 32 | B44: =Jednotlivci!C40 -> MUSIL Martin | C44: =Jednotlivci!D37 -> 1955 | D44: =Jednotlivci!E40 -> KVZ Liberec 4 | E44: 9 | F44: 9 | G44: 9 | H44: 9 | I44: 9 | J44: 8 | K44: 8 | L44: 7 | M44: 7 | N44: 7 | T44: 82

Sheet Ostatní
A12: St.č. | B12: Jméno | D12: Zásahy ZKM 456 | I12: Celkem | J12: Zásahy SVT 40 | O12: Celkem | P12: Zásahy SA 58 | U12: Celkem | V12: Zásahy Tokarev 33 | AA12: Celkem | AB12: Zásahy Slávia | AG12: Celkem
A13: =Jednotlivci!B9 -> 1 | B13: =Jednotlivci!C9 -> HANZLÍK Miroslav | C13: =Jednotlivci!D9 -> 1958 | D13: 9 | E13: 8 | F13: 8 | G13: 8 | H13: 7 | I13: =SUM(D13:H13) -> 40 | J13: 10 | K13: 10 | L13: 9 | M13: 9 | N13: 8 | O13: =SUM(J13:N13) -> 46 | P13: 12 | Q13: 12 | R13: 12 | S13: 12 | T13: 10 | U13: =SUM(P13:T13) -> 58 | V13: 9 | W13: 7 | X13: 5 | Y13: 4 | Z13: 3 | AA13: =SUM(V13:Z13) -> 28 | AB13: 10 | AC13: 8 | AD13: 6 | AE13: 8 | AF13: 8 | AG13: =SUM(AB13:AF13) -> 40
A14: =Jednotlivci!B10 -> 2 | B14: =Jednotlivci!C10 -> TROST Karel | C14: =Jednotlivci!D10 -> 1951 | D14: 8 | E14: 8 | F14: 8 | G14: 7 | H14: 6 | I14: =SUM(D14:H14) -> 37 | J14: 10 | K14: 9 | L14: 9 | M14: 8 | N14: 8 | O14: =SUM(J14:N14) -> 44 | P14: 10 | Q14: 10 | R14: 10 | S14: 10 | T14: 8 | U14: =SUM(P14:T14) -> 48 | V14: 10 | W14: 10 | X14: 9 | Y14: 8 | Z14: 8 | AA14: 45 | AB14: 4 | AC14: 8 | AD14: 6 | AE14: 5 | AF14: 9 | AG14: =SUM(AB14:AF14) -> 32
A15: =Jednotlivci!B11 -> 3 | B15: =Jednotlivci!C11 -> MENDYSZEWSKI Jan | C15: =Jednotlivci!D11 -> 1955 | D15: 10 | E15: 10 | F15: 8 | G15: 7 | H15: 5 | I15: 40 | J15: 10 | K15: 10 | L15: 10 | M15: 10 | N15: 9 | O15: 49 | P15: 12 | Q15: 12 | R15: 10 | S15: 10 | T15: 10 | U15: 54 | V15: 10 | W15: 9 | X15: 9 | Y15: 8 | Z15: 8 | AA15: 44 | AB15: 7 | AC15: 7 | AD15: 7 | AE15: 8 | AF15: 8 | AG15: 37
A16: =Jednotlivci!B12 -> 4 | B16: =Jednotlivci!C12 -> VNOUČEK Miloš | C16: =Jednotlivci!D12 -> 1964 | D16: 9 | E16: 8 | F16: 8 | G16: 7 | H16: 7 | I16: 39 | J16: 10 | K16: 9 | L16: 9 | M16: 9 | N16: 9 | O16: 46 | P16: 12 | Q16: 10 | R16: 10 | S16: 10 | T16: 10 | U16: 52 | V16: 10 | W16: 9 | X16: 9 | Y16: 9 | Z16: 9 | AA16: 46 | AB16: 6 | AC16: 8 | AD16: 9 | AE16: 9 | AF16: 9 | AG16: 41
A17: =Jednotlivci!B13 -> 5 | B17: =Jednotlivci!C13 -> VAŇÁTKO Petr | C17: =Jednotlivci!#REF! ->  | D17: 10 | E17: 10 | F17: 9 | G17: 9 | H17: 8 | I17: 46 | J17: 10 | K17: 10 | L17: 9 | M17: 8 | N17: 8 | O17: 45 | P17: 12 | Q17: 10 | R17: 10 | S17: 10 | T17: 8 | U17: 50 | V17: 9 | W17: 8 | X17: 7 | Y17: 6 | Z17: 5 | AA17: 35 | AB17: 4 | AC17: 7 | AD17: 5 | AE17: 6 | AF17: 4 | AG17: 26
A18: =Jednotlivci!B14 -> 6 | B18: =Jednotlivci!C14 -> KUTÍK Milan | C18: =Jednotlivci!D14 -> 1976 | D18: 9 | E18: 9 | F18: 9 | G18: 8 | H18: 7 | I18: 42 | J18: 10 | K18: 9 | L18: 9 | M18: 8 | N18: 8 | O18: 44 | P18: 10 | Q18: 10 | R18: 10 | S18: 8 | T18: 8 | U18: 46 | V18: 10 | W18: 9 | X18: 9 | Y18: 8 | Z18: 8 | AA18: 44 | AB18: 1 | AC18: 6 | AD18: 6 | AE18: 8 | AF18: 2 | AG18: 23
A19: =Jednotlivci!B15 -> 7 | B19: =Jednotlivci!C15 -> HANZLÍK Miroslav ml. | C19: =Jednotlivci!D15 -> 1990 | D19: 9 | E19: 9 | F19: 9 | G19: 9 | H19: 9 | I19: 45 | J19: 10 | K19: 10 | L19: 8 | M19: 8 | N19: 8 | O19: 44 | P19: 12 | Q19: 12 | R19: 10 | S19: 10 | T19: 8 | U19: 52 | V19: 8 | W19: 7 | X19: 7 | Y19: 7 | Z19: 6 | AA19: 35 | AB19: 3 | AC19: 0 | AD19: 2 | AE19: 5 | AF19: 4 | AG19: 14
A20: =Jednotlivci!B16 -> 8 | B20: =Jednotlivci!C16 -> VNOUČEK Tomáš | C20: =Jednotlivci!D13 -> 1961 | D20: 9 | E20: 9 | F20: 8 | G20: 8 | H20: 7 | I20: 41 | J20: 10 | K20: 9 | L20: 9 | M20: 8 | N20: 8 | O20: 44 | P20: 12 | Q20: 10 | R20: 10 | S20: 10 | T20: 10 | U20: 52 | V20: 10 | W20: 8 | X20: 8 | Y20: 8 | Z20: 8 | AA20: 42 | AB20: 4 | AC20: 8 | AD20: 8 | AE20: 9 | AF20: 9 | AG20: 38
A21: =Jednotlivci!B17 -> 9 | B21: =Jednotlivci!C17 -> LOUDA Jaroslav | C21: =Jednotlivci!D19 -> 1949 | D21: 5 | E21: 2 | F21: 1 | G21: 1 | H21: 0 | I21: 9 | J21: 9 | K21: 8 | L21: 7 | M21: 6 | N21: 5 | O21: 35 | P21: 10 | Q21: 10 | R21: 8 | S21: 0 | T21: 0 | U21: 28 | V21: 10 | W21: 9 | X21: 7 | Y21: 6 | Z21: 6 | AA21: 38 | AB21: 6 | AC21: 6 | AD21: 10 | AE21: 5 | AF21: 9 | AG21: 36
A22: =Jednotlivci!B18 -> 10 | B22: =Jednotlivci!C18 -> HUŠEK Ladislav | C22: =Jednotlivci!D20 -> 1960 | D22: 9 | E22: 7 | F22: 7 | G22: 5 | H22: 3 | I22: 31 | J22: 10 | K22: 10 | L22: 10 | M22: 10 | N22: 8 | O22: 48 | P22: 12 | Q22: 10 | R22: 10 | S22: 10 | T22: 10 | U22: 52 | V22: 8 | W22: 7 | X22: 6 | Y22: 5 | Z22: 3 | AA22: 29 | AB22: 9 | AC22: 7 | AD22: 8 | AE22: 3 | AF22: 7 | AG22: 34
A23: =Jednotlivci!B19 -> 11 | B23: =Jednotlivci!C19 -> HUDSKÝ Vítězslav | C23: =Jednotlivci!D17 -> 1954 | D23: 10 | E23: 8 | F23: 6 | G23: 6 | H23: 5 | I23: 35 | J23: 10 | K23: 10 | L23: 9 | M23: 8 | N23: 7 | O23: 44 | P23: 10 | Q23: 10 | R23: 10 | S23: 10 | T23: 10 | U23: 50 | V23: 9 | W23: 8 | X23: 8 | Y23: 8 | Z23: 6 | AA23: 39 | AB23: 9 | AC23: 8 | AD23: 3 | AE23: 7 | AF23: 3 | AG23: 30
A24: =Jednotlivci!B20 -> 12 | B24: =Jednotlivci!C20 -> ŠÍDA Bohuslav | C24: =Jednotlivci!#REF! ->  | D24: 7 | E24: 6 | F24: 6 | G24: 5 | H24: 5 | I24: 29 | J24: 9 | K24: 9 | L24: 9 | M24: 7 | N24: 7 | O24: 41 | P24: 12 | Q24: 10 | R24: 10 | S24: 8 | T24: 8 | U24: 48 | V24: 10 | W24: 10 | X24: 9 | Y24: 9 | Z24: 8 | AA24: 46 | AB24: 9 | AC24: 7 | AD24: 9 | AE24: 8 | AF24: 8 | AG24: 41
A25: =Jednotlivci!B21 -> 13 | B25: =Jednotlivci!C21 -> STRÁNSKÝ Jaromír | C25: =Jednotlivci!D21 -> 1953 | D25: 9 | E25: 8 | F25: 8 | G25: 8 | H25: 7 | I25: 40 | J25: 10 | K25: 10 | L25: 9 | M25: 9 | N25: 9 | O25: 47 | P25: 10 | Q25: 10 | R25: 10 | S25: 8 | T25: 8 | U25: 46 | V25: 10 | W25: 8 | X25: 8 | Y25: 8 | Z25: 7 | AA25: 41 | AB25: 6 | AC25: 8 | AD25: 9 | AE25: 6 | AF25: 9 | AG25: 38
A26: =Jednotlivci!B22 -> 14 | B26: =Jednotlivci!C22 -> MIKULE Roman | C26: =Jednotlivci!D24 -> 1964 | D26: 10 | E26: 8 | F26: 8 | G26: 8 | H26: 8 | I26: 42 | J26: 10 | K26: 10 | L26: 8 | M26: 8 | N26: 8 | O26: 44 | P26: 12 | Q26: 10 | R26: 8 | S26: 8 | T26: 8 | U26: 46 | V26: 10 | W26: 9 | X26: 9 | Y26: 8 | Z26: 7 | AA26: 43 | AB26: 8 | AC26: 8 | AD26: 8 | AE26: 5 | AF26: 9 | AG26: 38
A27: =Jednotlivci!B23 -> 15 | B27: =Jednotlivci!C23 -> POKORNÝ Daniel | C27: =Jednotlivci!D23 -> 1968 | D27: 10 | E27: 9 | F27: 8 | G27: 7 | H27: 7 | I27: 41 | J27: 10 | K27: 9 | L27: 9 | M27: 8 | N27: 8 | O27: 44 | P27: 10 | Q27: 10 | R27: 10 | S27: 10 | T27: 10 | U27: 50 | V27: 9 | W27: 9 | X27: 8 | Y27: 7 | Z27: 7 | AA27: 40 | AB27: 6 | AC27: 7 | AD27: 8 | AE27: 7 | AF27: 7 | AG27: 35
A28: =Jednotlivci!B24 -> 16 | B28: =Jednotlivci!C24 -> PLŮCHA Pavel | C28: =Jednotlivci!D22 -> 1970 | D28: 10 | E28: 9 | F28: 9 | G28: 8 | H28: 8 | I28: 44 | J28: 10 | K28: 10 | L28: 10 | M28: 9 | N28: 9 | O28: 48 | P28: 10 | Q28: 10 | R28: 10 | S28: 10 | T28: 8 | U28: 48 | V28: 9 | W28: 9 | X28: 8 | Y28: 8 | Z28: 8 | AA28: 42 | AB28: 9 | AC28: 8 | AD28: 6 | AE28: 10 | AF28: 8 | AG28: 41
A29: =Jednotlivci!B25 -> 17 | B29: =Jednotlivci!C25 -> KUČERA Karel | C29: =Jednotlivci!D25 -> 1950 | D29: 8 | E29: 7 | F29: 5 | G29: 5 | H29: 4 | I29: 29 | J29: 10 | K29: 10 | L29: 10 | M29: 9 | N29: 9 | O29: 48 | P29: 12 | Q29: 10 | R29: 10 | S29: 10 | T29: 8 | U29: 50 | V29: 10 | W29: 9 | X29: 9 | Y29: 8 | Z29: 6 | AA29: 42 | AB29: 8 | AC29: 6 | AD29: 6 | AE29: 4 | AF29: 6 | AG29: 30
A30: =Jednotlivci!B26 -> 18 | B30: =Jednotlivci!C26 -> PEKLÁK Dalibor | C30: =Jednotlivci!D26 -> 1961 | D30: 7 | E30: 7 | F30: 7 | G30: 7 | H30: 6 | I30: 34 | J30: 10 | K30: 10 | L30: 10 | M30: 9 | N30: 9 | O30: 48 | P30: 12 | Q30: 12 | R30: 12 | S30: 10 | T30: 10 | U30: 56 | V30: 9 | W30: 9 | X30: 9 | Y30: 8 | Z30: 7 | AA30: 42 | AB30: 9 | AC30: 6 | AD30: 8 | AE30: 5 | AF30: 7 | AG30: 35
A31: =Jednotlivci!B27 -> 19 | B31: BRZÁK Jan | C31: =Jednotlivci!D27 -> 1972 | D31: 10 | E31: 8 | F31: 8 | G31: 8 | H31: 7 | I31: 41 | J31: 10 | K31: 10 | L31: 9 | M31: 9 | N31: 9 | O31: 47 | P31: 12 | Q31: 10 | R31: 10 | S31: 10 | T31: 10 | U31: 52 | V31: 10 | W31: 10 | X31: 9 | Y31: 8 | Z31: 5 | AA31: 42 | AB31: 7 | AC31: 6 | AD31: 7 | AE31: 7 | AF31: 9 | AG31: 36
A32: =Jednotlivci!B28 -> 20 | B32: =Jednotlivci!C28 -> CILICHOVÁ Jaroslava | C32: =Jednotlivci!D28 -> 1973 | D32: 10 | E32: 10 | F32: 9 | G32: 8 | H32: 7 | I32: 44 | J32: 10 | K32: 10 | L32: 10 | M32: 9 | N32: 9 | O32: 48 | P32: 12 | Q32: 10 | R32: 10 | S32: 10 | T32: 10 | U32: 52 | V32: 10 | W32: 9 | X32: 9 | Y32: 8 | Z32: 8 | AA32: 44 | AB32: 7 | AC32: 7 | AD32: 6 | AE32: 6 | AF32: 6 | AG32: 32
A33: =Jednotlivci!B29 -> 21 | B33: =Jednotlivci!C29 -> PROCHÁZKA Jaroslav | C33: =Jednotlivci!D29 -> 1961 | D33: 10 | E33: 9 | F33: 8 | G33: 8 | H33: 7 | I33: 42 | J33: 10 | K33: 10 | L33: 9 | M33: 9 | N33: 9 | O33: 47 | P33: 12 | Q33: 12 | R33: 10 | S33: 10 | T33: 10 | U33: 54 | V33: 9 | W33: 9 | X33: 9 | Y33: 9 | Z33: 8 | AA33: 44 | AB33: 4 | AC33: 9 | AD33: 7 | AE33: 10 | AF33: 9 | AG33: 39
A34: =Jednotlivci!B30 -> 22 | B34: =Jednotlivci!C30 -> HLAVATÝ Josef | C34: =Jednotlivci!D31 -> 1965 | D34: 10 | E34: 9 | F34: 9 | G34: 8 | H34: 8 | I34: 44 | J34: 10 | K34: 9 | L34: 8 | M34: 7 | N34: 7 | O34: 41 | P34: 12 | Q34: 12 | R34: 12 | S34: 10 | T34: 10 | U34: 56 | V34: 10 | W34: 9 | X34: 9 | Y34: 8 | Z34: 8 | AA34: 44 | AB34: 7 | AC34: 3 | AD34: 7 | AE34: 3 | AF34: 9 | AG34: 29
A35: =Jednotlivci!B31 -> 23 | B35: =Jednotlivci!C31 -> BENÁČEK Martin | C35: =Jednotlivci!D30 -> 1958 | D35: 10 | E35: 9 | F35: 8 | G35: 8 | H35: 7 | I35: 42 | J35: 10 | K35: 10 | L35: 9 | M35: 9 | N35: 9 | O35: 47 | P35: 10 | Q35: 10 | R35: 10 | S35: 8 | T35: 8 | U35: 46 | V35: 10 | W35: 9 | X35: 9 | Y35: 8 | Z35: 6 | AA35: 42 | AB35: 5 | AC35: 3 | AD35: 1 | AE35: 7 | AF35: 7 | AG35: 23
A36: =Jednotlivci!B32 -> 24 | B36: =Jednotlivci!C32 -> RESL Jan | C36: =Jednotlivci!D32 -> 1961 | D36: 9 | E36: 9 | F36: 8 | G36: 8 | H36: 8 | I36: 42 | J36: 9 | K36: 9 | L36: 9 | M36: 9 | N36: 9 | O36: 45 | P36: 10 | Q36: 10 | R36: 8 | S36: 8 | T36: 8 | U36: 44 | V36: 9 | W36: 8 | X36: 8 | Y36: 8 | Z36: 7 | AA36: 40 | AB36: 7 | AC36: 8 | AD36: 8 | AE36: 6 | AF36: 1 | AG36: 30
A37: =Jednotlivci!B33 -> 25 | B37: =Jednotlivci!C33 -> HALAMA Jan | C37: =Jednotlivci!#REF! ->  | D37: 10 | E37: 9 | F37: 9 | G37: 8 | H37: 6 | I37: 42 | J37: 10 | K37: 8 | L37: 8 | M37: 7 | N37: 7 | O37: 40 | P37: 10 | Q37: 10 | R37: 10 | S37: 8 | T37: 8 | U37: 46 | V37: 10 | W37: 10 | X37: 8 | Y37: 7 | Z37: 7 | AA37: 42 | AB37: 5 | AC37: 5 | AD37: 3 | AE37: 8 | AF37: 7 | AG37: 28
A38: =Jednotlivci!B34 -> 26 | B38: =Jednotlivci!C34 -> NOVOTNÝ Tomáš | C38: =Jednotlivci!D34 -> 1992 | D38: 9 | E38: 8 | F38: 8 | G38: 7 | H38: 7 | I38: 39 | J38: 10 | K38: 9 | L38: 9 | M38: 9 | N38: 9 | O38: 46 | P38: 10 | Q38: 10 | R38: 8 | S38: 8 | T38: 6 | U38: 42 | V38: 10 | W38: 7 | X38: 0 | Y38: 0 | Z38: 0 | AA38: 17 | AB38: 7 | AC38: 0 | AD38: 9 | AE38: 6 | AF38: 4 | AG38: 26
A39: =Jednotlivci!B35 -> 27 | B39: =Jednotlivci!C35 -> ČERVINKA Leoš | C39: =Jednotlivci!D35 -> 1970 | D39: 7 | E39: 7 | F39: 6 | G39: 5 | H39: 4 | I39: 29 | J39: 7 | K39: 7 | L39: 6 | M39: 6 | N39: 0 | O39: 26 | P39: 12 | Q39: 10 | R39: 10 | S39: 6 | T39: 6 | U39: 44 | V39: 9 | W39: 7 | X39: 7 | Y39: 7 | Z39: 6 | AA39: 36 | AB39: 7 | AC39: 8 | AD39: 7 | AE39: 8 | AF39: 7 | AG39: 37
A40: 28 | B40: =Jednotlivci!C36 -> VELC Jindřich | C40: =Jednotlivci!D36 -> 1948 | D40: 6 | E40: 5 | F40: 4 | G40: 4 | H40: 2 | I40: 21 | J40: 10 | K40: 10 | L40: 9 | M40: 9 | N40: 8 | O40: 46 | P40: 10 | Q40: 8 | R40: 8 | S40: 8 | T40: 6 | U40: 40 | V40: 8 | W40: 8 | X40: 8 | Y40: 7 | Z40: 6 | AA40: 37 | AB40: 6 | AC40: 4 | AD40: 7 | AE40: 2 | AF40: 0 | AG40: 19
A41: 29 | B41: =Jednotlivci!C37 -> KRÁTKÝ Karel | C41: =Jednotlivci!D37 -> 1955 | D41: 10 | E41: 10 | F41: 9 | G41: 9 | H41: 9 | I41: 47 | J41: 10 | K41: 10 | L41: 10 | M41: 10 | N41: 9 | O41: 49 | P41: 12 | Q41: 12 | R41: 10 | S41: 10 | T41: 10 | U41: 54 | V41: 10 | W41: 9 | X41: 8 | Y41: 8 | Z41: 6 | AA41: 41 | AB41: 7 | AC41: 5 | AD41: 7 | AE41: 7 | AF41: 4 | AG41: 30
A42: 30 | B42: =Jednotlivci!C38 -> KLACEK Miloš | C42: =Jednotlivci!D38 -> 1939 | D42: 10 | E42: 3 | F42: 0 | G42: 0 | H42: 0 | I42: 13 | J42: 10 | K42: 9 | L42: 8 | M42: 8 | N42: 7 | O42: 42 | P42: 10 | Q42: 10 | R42: 10 | S42: 10 | T42: 8 | U42: 48 | V42: 10 | W42: 10 | X42: 7 | Y42: 6 | Z42: 6 | AA42: 39 | AB42: 7 | AC42: 6 | AD42: 6 | AE42: 7 | AF42: 4 | AG42: 30
A43: 31 | B43: =Jednotlivci!C39 -> POLENO Dušan | C43: =Jednotlivci!D39 -> 1951 | D43: 9 | E43: 7 | F43: 7 | G43: 6 | H43: 6 | I43: 35 | J43: 10 | K43: 9 | L43: 9 | M43: 9 | N43: 9 | O43: 46 | P43: 10 | Q43: 10 | R43: 10 | S43: 10 | T43: 10 | U43: 50 | V43: 9 | W43: 9 | X43: 9 | Y43: 8 | Z43: 7 | AA43: 42 | AB43: 6 | AC43: 6 | AD43: 7 | AE43: 8 | AF43: 6 | AG43: 33
A44: 32 | B44: =Jednotlivci!C40 -> MUSIL Martin | C44: =Jednotlivci!D40 -> 1977 | D44: 8 | E44: 8 | F44: 6 | G44: 6 | H44: 6 | I44: 34 | J44: 10 | K44: 9 | L44: 8 | M44: 8 | N44: 7 | O44: 42 | P44: 10 | Q44: 8 | R44: 8 | S44: 8 | T44: 8 | U44: 42 | V44: 10 | W44: 9 | X44: 8 | Y44: 8 | Z44: 6 | AA44: 41 | AB44: 9 | AC44: 3 | AD44: 6 | AE44: 5 | AF44: 7 | AG44: 30
